bitfinex-derivatives/quotes_ETHF0:USTF0_20250602
["timestamp","ask_amount","ask_price","bid_price","bid_amount"]
[1748838215668,0.07669465,2500.0,2499.9,2.947]
[1748838216860,2.39047327,2500.6,2499.9,7.4672]
[1748838217058,1.24521439,2500.5,2500.4,0.4797]
[1748838217262,1.03737026,2500.5,2500.4,0.4797]
[1748838217459,3.68745,2500.7,2500.5,0.47968]
[1748838217658,3.68745,2500.7,2500.6,1.2798]
[1748838218763,4.72348588,2500.7,2500.6,1.2798]
[1748838219558,4.24383588,2500.7,2500.6,1.2798]
[1748838219758,4.72348588,2500.7,2500.6,1.2798]
[1748838220359,3.89525819,2500.7,2500.6,1.2798]
[1748838220565,4.72305852,2500.7,2500.6,1.2798]
[1748838220868,4.93050229,2500.7,2500.6,1.2798]
[1748838221162,4.93050261,2500.7,2500.6,1.2798]
[1748838221361,1.51490044,2500.7,2500.6,1.2798]
[1748838221559,0.47965,2500.7,2500.6,1.2798]
[1748838221759,1.13943,2500.8,2500.6,1.2798]
[1748838222961,0.6598,2500.8,2500.6,2.25947]
[1748838223364,1.13943,2500.8,2500.6,2.25947]
[1748838224063,1.13943,2500.8,2500.6,1.7798]
[1748838225369,0.47965,2500.7,2500.6,0.5]
[1748838225572,1.13944,2500.8,2500.6,0.5]
[1748838226567,0.6598,2500.8,2500.6,0.5]
[1748838226866,1.77925,2500.7,2500.6,0.5]
[1748838227971,2.81360079,2500.7,2500.6,0.5]
[1748838228179,6.02140079,2500.7,2500.6,0.5]
[1748838228567,11.02140079,2500.7,2500.6,0.5]
[1748838228770,0.47974,2500.2,2500.1,3.2078]
[1748838228971,0.47976,2500.1,2500.0,3.908]
[1748838229169,3.2078,2500.4,2499.8,4.5064]
[1748838229468,0.47979,2500.0,2499.8,4.5064]
[1748838229663,1.9724,2500.3,2499.7,3.908]
[1748838229868,1.1282,2499.9,2499.7,3.908]
[1748838230772,0.6484,2499.9,2499.7,4.38784]
[1748838230973,0.6484,2499.9,2499.7,4.408]
[1748838231169,0.6484,2499.9,2499.7,4.88784]
[1748838231865,1.12821,2499.9,2499.7,4.408]
[1748838232067,0.6484,2499.9,2499.7,4.408]
[1748838232267,1.1282,2499.9,2499.7,4.408]
[1748838233273,0.6484,2499.9,2499.7,4.408]
[1748838233573,0.6484,2499.9,2499.7,4.88784]
[1748838233769,2.4423,2499.9,2499.7,4.88784]
[1748838233965,1.9625,2499.9,2499.7,4.88784]
[1748838234363,0.6484,2499.9,2499.8,0.47982]
[1748838234567,0.6484,2499.9,2499.8,1.75442]
[1748838237375,0.6484,2499.9,2499.8,2.43372]
[1748838241675,0.6484,2499.9,2499.8,1.9539]
[1748838241876,0.6484,2499.9,2499.8,2.43372]
[1748838242479,0.6484,2499.9,2499.8,1.9539]
[1748838242775,0.6484,2499.9,2499.8,2.43372]
[1748838243076,0.6484,2499.9,2499.8,1.9539]
[1748838243974,0.6484,2499.9,2499.8,2.43372]
[1748838244775,0.6484,2499.9,2499.8,1.9539]
[1748838244975,0.6484,2499.9,2499.8,2.43372]
[1748838245781,1.3141,2500.1,2499.8,1.9539]
[1748838246085,2.47067,2500.1,2499.9,0.47979]
[1748838246385,2.47067,2500.1,2499.9,1.75629]
[1748838246680,2.47067,2500.1,2499.9,1.2765]
[1748838247579,0.47978,2500.0,2499.9,1.2765]
[1748838250383,2.47068,2500.1,2499.9,1.7563]
[1748838250684,0.6768,2500.1,2499.9,1.75628]
[1748838250885,1.15656,2500.1,2500.0,1.3463]
[1748838251186,2.19222686,2500.1,2500.0,1.3463]
[1748838252184,1.71246686,2500.1,2500.0,1.3463]
[1748838252483,2.19222686,2500.1,2500.0,1.3463]
[1748838252685,0.47979,2500.0,2499.8,0.6793]
[1748838252983,0.47979,2500.0,2499.8,1.15912]
[1748838253172,0.07069789,2499.9,2499.8,2.42202]
[1748838253374,0.07069789,2499.9,2499.8,2.92202]
[1748838256886,1.58811352,2499.9,2499.8,0.5]
[1748838257681,1.7959886,2499.9,2499.8,0.5]
[1748838257983,1.79597685,2499.9,2499.8,0.5]
[1748838258183,1.79597745,2499.9,2499.8,0.5]
[1748838258381,1.58811352,2499.9,2499.8,0.5]
[1748838258985,5.00526093,2499.9,2499.8,0.5]
[1748838259183,4.93456304,2499.9,2499.8,0.5]
[1748838259383,4.93459126,2499.9,2499.8,0.5]
[1748838259777,6.20579513,2499.9,2499.8,0.5]
[1748838259989,5.99794835,2499.9,2499.8,0.5]
[1748838260188,6.20579228,2499.9,2499.8,0.5]
[1748838260486,6.20567751,2499.9,2499.8,0.5]
[1748838260686,6.2056763,2499.9,2499.8,0.5]
[1748838260887,6.20567629,2499.9,2499.8,0.5]
[1748838261289,5.99794835,2499.9,2499.8,0.5]
[1748838261482,6.20567574,2499.9,2499.8,0.5]
[1748838261682,5.99794835,2499.9,2499.8,0.5]
[1748838262193,6.20566489,2499.9,2499.8,0.5]
[1748838262383,5.99794835,2499.9,2499.8,0.5]
[1748838262583,2.79014835,2499.9,2499.8,0.5]
[1748838263398,2.78927334,2499.9,2499.8,0.5]
[1748838263704,7.78927334,2499.9,2499.8,0.5]
[1748838263897,7.98487334,2499.9,2499.8,0.5]
[1748838264304,2.98487334,2499.9,2499.8,0.5]
[1748838264503,7.98487334,2499.9,2499.8,0.5]
[1748838265302,8.19250037,2499.9,2499.8,0.5]
[1748838265504,8.19248413,2499.9,2499.8,0.5]
[1748838265704,7.98487334,2499.9,2499.8,0.5]
[1748838266005,8.19248231,2499.9,2499.8,0.5]
[1748838266597,8.19248113,2499.9,2499.8,0.5]
[1748838266798,7.98487334,2499.9,2499.8,0.5]
[1748838267003,8.19248067,2499.9,2499.8,0.5]
[1748838267199,7.98487334,2499.9,2499.8,0.5]
[1748838267709,0.47985,2499.7,2499.5,0.00599676]
[1748838267897,1.03284698,2499.6,2499.5,0.00599676]
[1748838268099,1.71784698,2499.6,2499.5,0.00599676]
[1748838269800,1.71784698,2499.6,2499.5,2.00179676]
[1748838272309,1.71761215,2499.6,2499.5,2.00179676]
[1748838273609,1.71755718,2499.6,2499.5,2.00179676]
[1748838273904,1.71755718,2499.6,2499.5,2.50179676]
[1748838274302,2.19741718,2499.6,2499.5,2.50179676]
[1748838275009,1.71755718,2499.6,2499.5,2.50179676]
[1748838276108,1.71755718,2499.6,2499.5,2.98167676]
[1748838276314,1.03255718,2499.6,2499.5,2.98167676]
[1748838278613,1.10325507,2499.6,2499.5,2.98167676]
[1748838279314,1.58311507,2499.6,2499.5,1.85489676]
[1748838279509,1.51241718,2499.6,2499.5,0.50599676]
[1748838280010,1.70801718,2499.6,2499.5,0.50599676]
[1748838281114,0.67546,2499.6,2499.5,0.50599676]
[1748838281612,1.70827335,2499.6,2499.5,0.50599676]
[1748838283115,1.22841335,2499.6,2499.5,0.98587676]
[1748838283413,1.22841335,2499.6,2499.5,2.32257676]
[1748838284613,1.29911124,2499.6,2499.5,2.32257676]
[1748838285315,1.29911124,2499.6,2499.5,1.82257676]
[1748838285514,0.26629789,2499.6,2499.5,2.32257676]
[1748838285714,1.2996573,2499.6,2499.5,2.32257676]
[1748838289817,1.30057859,2499.6,2499.5,2.32257676]
[1748838290221,1.30056317,2499.6,2499.5,2.32257676]
[1748838290615,1.30056317,2499.6,2499.5,6.22557676]
[1748838291019,0.26629789,2499.6,2499.5,6.22557676]
[1748838292413,0.26629789,2499.6,2499.5,9.43337676]
[1748838294532,0.26629789,2499.6,2499.5,5.53037676]
[1748838297126,0.26629789,2499.6,2499.5,4.19367676]
[1748838297626,3.25947725,2499.6,2499.5,3.69367676]
[1748838297827,3.25947725,2499.6,2499.5,4.19367676]
[1748838299129,3.25950691,2499.6,2499.5,4.19367676]
[1748838300323,1.95220691,2499.6,2499.5,4.19367676]
[1748838301427,1.95220691,2499.6,2499.5,0.98587676]
[1748838302034,1.95223215,2499.6,2499.5,0.98587676]
[1748838303334,2.43209215,2499.6,2499.5,0.50599676]
[1748838303627,3.92641201,2499.6,2499.5,0.50599676]
[1748838303934,3.37585794,2499.6,2499.5,0.50599676]
[1748838304130,3.16813426,2499.6,2499.5,0.50599676]
[1748838304326,3.37586132,2499.6,2499.5,0.50599676]
[1748838304526,3.85572132,2499.6,2499.5,0.50599676]
[1748838304722,3.85571441,2499.6,2499.5,0.50599676]
[1748838304929,3.85568569,2499.6,2499.5,0.50599676]
[1748838305327,3.64799426,2499.6,2499.5,0.50599676]
[1748838305633,3.85570779,2499.6,2499.5,0.50599676]
[1748838305928,3.64799426,2499.6,2499.5,0.50599676]
[1748838306231,2.82247153,2499.6,2499.5,0.50599676]
[1748838306427,3.85558914,2499.6,2499.5,0.50599676]
[1748838306823,3.64787761,2499.6,2499.5,0.50599676]
[1748838307024,3.8555014,2499.6,2499.5,0.50599676]
[1748838307230,3.85550341,2499.6,2499.5,0.50599676]
[1748838307425,3.85550333,2499.6,2499.5,0.50599676]
[1748838308535,4.1777079,2499.6,2499.5,0.50599676]
[1748838308933,1.1997,2499.5,2498.7,5.01432]
[1748838309138,0.47998,2499.0,2498.7,3.903]
[1748838309440,0.642,2498.9,2498.7,3.903]
[1748838309632,3.2078,2499.1,2499.0,0.47997]
[1748838309833,1.03240835,2499.1,2498.9,0.47998]
[1748838310129,0.642,2499.0,2498.9,0.47999]
[1748838311033,0.642,2499.0,2498.8,1.7393]
[1748838311435,0.642,2499.0,2498.8,1.2593]
[1748838311640,0.1957,2498.9,2498.8,1.7393]
[1748838311936,0.1957,2498.9,2498.7,0.50599676]
[1748838312138,0.1957,2498.9,2498.7,0.98601676]
[1748838313537,0.6757,2498.9,2498.7,0.98601676]
[1748838313839,1.5441,2498.9,2498.7,0.98601676]
[1748838314141,1.5441,2498.9,2498.8,0.48001]
[1748838315140,1.5441,2498.9,2498.7,2.24811676]
[1748838315441,1.5441,2498.9,2498.8,0.48001]
[1748838315838,2.02409,2498.9,2498.7,2.24811676]
[1748838316234,0.1957,2498.9,2498.8,0.48001]
[1748838316439,0.6757,2498.9,2498.7,2.24811676]
[1748838316739,0.6757,2498.9,2498.8,0.48001]
[1748838317041,1.5205,2498.9,2498.8,0.48001]
[1748838317241,2.00049,2498.9,2498.7,2.24811676]
[1748838317639,2.00049,2498.9,2498.8,0.48001]
[1748838317841,1.5205,2498.9,2498.8,0.48001]
[1748838319945,2.00049,2498.9,2498.7,0.98601676]
[1748838320144,2.00049,2498.9,2498.8,0.48001]
[1748838320745,2.00049,2498.9,2498.7,0.98601676]
[1748838321543,2.00049,2498.9,2498.8,0.48001]
[1748838322446,2.00049,2498.9,2498.7,0.98601676]
[1748838322746,1.5205,2498.9,2498.8,0.48001]
[1748838324140,0.1957,2498.9,2498.8,0.48001]
[1748838324745,0.1957,2498.9,2498.8,1.83451]
[1748838327847,0.1957,2498.9,2498.8,2.33451]
[1748838328444,0.67569,2498.9,2498.8,2.33451]
[1748838328953,0.1957,2498.9,2498.8,2.33451]
[1748838329552,0.67569,2498.9,2498.8,0.5]
[1748838329749,1.96449,2498.9,2498.8,0.5]
[1748838330555,2.99665061,2498.9,2498.8,0.5]
[1748838330954,7.72410058,2498.9,2498.1,3.68794]
[1748838331259,3.2078,2498.4,2497.9,1.3109]
[1748838331562,3.2078,2498.4,2497.8,3.2078]
[1748838331563,0.48017,2498.0,2497.8,3.2078]
[1748838331742,20.8868,2498.3,2497.8,3.2078]
[1748838331946,0.48017,2498.0,2497.8,3.21379676]
[1748838332449,20.8868,2498.3,2497.8,3.21379676]
[1748838332652,0.48016,2498.1,2497.8,3.69399676]
[1748838332956,1.2594,2498.0,2497.8,3.69399676]
[1748838333355,0.2001,2497.9,2497.8,3.69399676]
[1748838333555,0.2001,2497.9,2497.8,5.00489676]
[1748838334654,0.2001,2497.9,2497.8,5.50489676]
[1748838335952,0.2001,2497.9,2497.8,2.29709676]
[1748838336352,0.2001,2497.9,2497.8,1.81689676]
[1748838336954,0.68029,2497.9,2497.8,1.81689676]
[1748838337660,0.2001,2497.9,2497.8,1.81689676]
[1748838337958,0.2001,2497.9,2497.8,2.29709676]
[1748838339761,0.2001,2497.9,2497.8,1.81689676]
[1748838340161,0.2001,2497.9,2497.8,2.29709676]
[1748838340459,0.68029,2497.9,2497.8,0.50599676]
[1748838340658,1.32679,2497.9,2497.8,0.50599676]
[1748838341964,0.8466,2497.9,2497.8,0.98619676]
[1748838342564,1.32679,2497.9,2497.8,0.98619676]
[1748838343265,0.2001,2497.9,2497.8,0.98619676]
[1748838343458,0.2001,2497.9,2497.8,2.28099676]
[1748838345263,0.2001,2497.9,2497.8,1.78099676]
[1748838345563,0.2001,2497.9,2497.8,2.28099676]
[1748838346566,0.68028,2497.9,2497.8,2.28099676]
[1748838346762,0.2001,2497.9,2497.8,2.28099676]
[1748838347966,0.68028,2497.9,2497.8,2.28099676]
[1748838348265,0.2001,2497.9,2497.8,2.28099676]
[1748838349561,0.68029,2497.9,2497.8,1.80079676]
[1748838350069,0.68029,2497.9,2497.8,2.28099676]
[1748838350965,0.2001,2497.9,2497.8,2.28099676]
[1748838352874,0.68028,2497.9,2497.8,2.28099676]
[1748838353768,0.2001,2497.9,2497.8,1.80079676]
[1748838353967,0.68028,2497.9,2497.8,0.50599676]
[1748838357159,1.7105828,2497.9,2497.8,0.50599676]
[1748838357572,1.7105828,2497.9,2497.8,0.00599676]
[1748838359066,3.0253828,2497.9,2497.8,0.00599676]
[1748838359676,1.99508,2497.9,2497.8,0.00599676]
[1748838359969,3.0267041,2497.9,2497.8,0.00599676]
[1748838360571,3.23437784,2497.9,2497.8,0.00599676]
[1748838360774,3.0267041,2497.9,2497.8,0.00599676]
[1748838362670,3.23628731,2497.9,2497.8,0.00599676]
[1748838362869,3.02826974,2497.9,2497.8,0.00599676]
[1748838364574,3.23623169,2497.9,2497.8,0.00599676]
[1748838365274,3.23621849,2497.9,2497.8,0.00599676]
[1748838365575,3.02826974,2497.9,2497.8,0.00599676]
[1748838365775,3.2362225,2497.9,2497.8,0.00599676]
[1748838366178,3.23622061,2497.9,2497.8,0.00599676]
[1748838366876,3.23617134,2497.9,2497.8,0.00599676]
[1748838367173,3.23617196,2497.9,2497.8,0.00599676]
[1748838367369,3.02826974,2497.9,2497.8,0.00599676]
[1748838367768,3.23613071,2497.9,2497.8,0.00599676]
[1748838368075,3.23612828,2497.9,2497.8,0.00599676]
[1748838368676,3.2361372,2497.9,2497.8,0.00599676]
[1748838368881,3.23613754,2497.9,2497.8,0.00599676]
[1748838369175,3.02826974,2497.9,2497.8,0.00599676]
[1748838369371,3.23609241,2497.9,2497.8,0.00599676]
[1748838369572,3.23609181,2497.9,2497.8,0.00599676]
[1748838369875,3.23609219,2497.9,2497.8,0.00599676]
[1748838370079,3.23609926,2497.9,2497.8,0.00599676]
[1748838370374,3.2360975,2497.9,2497.8,0.00599676]
[1748838370676,3.23609749,2497.9,2497.8,0.00599676]
[1748838370874,3.23609764,2497.9,2497.8,0.00599676]
[1748838371071,3.02826974,2497.9,2497.8,0.00599676]
[1748838371270,3.23609308,2497.9,2497.8,0.00599676]
[1748838371480,3.02706243,2497.9,2497.8,0.00599676]
[1748838371670,0.48028,2497.4,2497.3,3.2078]
[1748838371871,0.48028,2497.4,2497.3,4.55]
[1748838372273,1.51211036,2497.4,2497.3,4.55]
[1748838372775,1.03183036,2497.4,2497.3,4.55]
[1748838373182,1.51211036,2497.4,2497.3,4.55]
[1748838373682,0.48028,2497.4,2497.3,4.55]
[1748838373979,0.48028,2497.5,2497.3,4.55]
[1748838374180,0.48028,2497.5,2497.4,1.289]
[1748838374573,0.68048,2497.5,2497.4,1.289]
[1748838374769,1.71221231,2497.5,2497.4,1.289]
[1748838375875,1.7121986,2497.5,2497.4,1.289]
[1748838380385,1.71240842,2497.5,2497.4,1.289]
[1748838380884,1.23212842,2497.5,2497.4,1.76928]
[1748838381282,0.2002,2497.5,2497.4,1.76928]
[1748838381873,0.2002,2497.5,2497.4,2.26928]
[1748838384087,0.68046,2497.5,2497.4,1.789]
[1748838384387,1.71312148,2497.5,2497.4,1.789]
[1748838384683,0.68046,2497.5,2497.4,1.789]
[1748838385388,0.68046,2497.5,2497.4,2.26928]
[1748838385580,0.68046,2497.5,2497.4,1.789]
[1748838385882,0.2002,2497.5,2497.4,2.26928]
[1748838386389,1.2328934,2497.5,2497.4,2.26928]
[1748838388087,0.2002,2497.5,2497.4,2.26928]
[1748838389292,1.23362819,2497.5,2497.4,2.26928]
[1748838392486,0.2002,2497.5,2497.4,2.26928]
[1748838398099,0.2002,2497.5,2497.4,5.47708]
[1748838400796,0.2002,2497.5,2497.4,2.26928]
[1748838400996,0.2002,2497.5,2497.4,5.47708]
[1748838402500,0.2002,2497.5,2497.4,4.97708]
[1748838402794,0.2002,2497.5,2497.4,5.47708]
[1748838406302,0.8447,2497.5,2497.4,4.18808]
[1748838406502,0.8447,2497.5,2497.4,8.08208]
[1748838406913,0.8447,2497.5,2497.4,4.18808]
[1748838407212,0.8447,2497.5,2497.4,8.08208]
[1748838407809,0.8447,2497.5,2497.4,4.18808]
[1748838408115,0.8447,2497.5,2497.4,8.08208]
[1748838409515,0.2002,2497.5,2497.4,8.08208]
[1748838410215,0.2002,2497.5,2497.4,4.87428]
[1748838410615,0.2002,2497.5,2497.4,6.19018]
[1748838413212,0.2002,2497.5,2497.4,9.39798]
[1748838413805,0.2002,2497.5,2497.4,5.50398]
[1748838414007,0.2002,2497.5,2497.4,9.39398]
[1748838416513,0.2002,2497.5,2497.4,6.18618]
[1748838417618,0.2002,2497.5,2497.4,5.68618]
[1748838417817,0.2002,2497.5,2497.4,6.18618]
[1748838418015,1.23303681,2497.5,2497.4,6.18618]
[1748838418216,1.23303681,2497.5,2497.4,4.87028]
[1748838419314,1.23303681,2497.5,2497.4,6.19418]
[1748838422525,1.23303681,2497.5,2497.4,2.30418]
[1748838422724,1.23303681,2497.5,2497.4,6.19418]
[1748838423423,1.23303681,2497.5,2497.4,2.30418]
[1748838423722,1.23252166,2497.5,2497.4,6.19418]
[1748838424118,0.2002,2497.5,2497.4,6.19418]
[1748838425322,1.2324451,2497.5,2497.4,6.19418]
[1748838428227,1.23221489,2497.5,2497.4,6.19418]
[1748838430632,1.23221489,2497.5,2497.4,2.30418]
[1748838430833,1.23221489,2497.5,2497.4,6.19418]
[1748838432534,1.23127358,2497.5,2497.4,5.69418]
[1748838432929,0.2002,2497.5,2497.4,6.19418]
[1748838438031,1.23144301,2497.5,2497.4,6.19418]
[1748838438433,0.2002,2497.5,2497.4,6.19418]
[1748838443739,0.2002,2497.5,2497.4,6.18918]
[1748838447545,0.2002,2497.5,2497.4,5.68918]
[1748838447946,0.2002,2497.5,2497.4,6.18918]
[1748838450444,0.2002,2497.5,2497.4,46.98918]
[1748838451046,0.2002,2497.5,2497.4,50.19698]
[1748838453041,0.00599676,2497.6,2497.5,0.48026]
[1748838453237,0.00599676,2497.6,2497.5,2.47496]
[1748838453441,2.39047327,2498.5,2497.6,1.20061]
[1748838453747,1.03029495,2498.1,2498.0,0.48015]
[1748838453944,1.69869495,2498.1,2498.0,0.48015]
[1748838454848,1.69844,2498.1,2498.0,0.48015]
[1748838455842,0.6684,2498.1,2498.0,0.48015]
[1748838458144,2.46615,2498.1,2497.9,3.884]
[1748838458348,1.986,2498.1,2498.0,0.48017]
[1748838460049,2.46615,2498.1,2498.0,0.48017]
[1748838460548,1.986,2498.1,2498.0,0.48017]
[1748838460949,2.46615,2498.1,2498.0,0.48017]
[1748838461151,2.46615,2498.1,2497.9,4.36417]
[1748838461352,1.3081,2498.0,2497.9,4.36417]
[1748838462853,1.3081,2498.0,2497.9,4.86417]
[1748838465956,1.78827,2498.0,2497.9,0.5]
[1748838466845,1.78827,2498.0,2497.9,0.98018]
[1748838467049,1.78827,2498.0,2497.9,0.5]
[1748838468247,7.81697508,2498.0,2497.9,0.5]
[1748838468450,2.81697508,2498.0,2497.9,0.5]
[1748838469149,3.44807508,2498.0,2497.9,0.5]
[1748838470353,3.44789459,2498.0,2497.9,0.5]
[1748838471154,3.65490481,2498.0,2497.9,0.5]
[1748838471551,3.65487193,2498.0,2497.9,0.5]
[1748838471759,3.65487172,2498.0,2497.9,0.5]
[1748838472156,3.65486626,2498.0,2497.9,0.5]
[1748838472361,3.65486554,2498.0,2497.9,0.5]
[1748838472662,0.48028,2497.5,2497.2,7.7437]
[1748838472858,0.6443,2497.4,2497.3,0.4803]
[1748838474456,0.6443,2497.4,2497.3,0.9803]
[1748838474859,1.74122,2497.8,2497.6,0.48023]
[1748838475060,2.13875111,2497.7,2497.5,0.48025]
[1748838475358,2.37203,2497.7,2497.5,0.48025]
[1748838476253,0.6307,2497.7,2497.6,0.48024]
[1748838476456,1.74127,2498.0,2497.8,0.4802]
[1748838476651,1.02786907,2497.9,2497.8,0.4802]
[1748838476860,0.8576,2498.2,2498.1,0.48015]
[1748838477053,2.53029694,2498.2,2498.1,0.48015]
[1748838477260,1.22379694,2498.2,2498.1,4.35915]
[1748838477454,1.22379694,2498.2,2498.1,7.56695]
[1748838478062,0.1958,2498.2,2498.1,7.56695]
[1748838478763,0.1958,2498.2,2498.1,8.84665]
[1748838479865,0.1958,2498.2,2498.1,4.4875]
[1748838480054,0.1958,2498.2,2498.1,8.3665]
[1748838480659,0.1958,2498.2,2498.1,8.84665]
[1748838480862,0.1958,2498.2,2497.8,40.8]
[1748838481067,1.81766,2498.1,2497.8,40.8]
[1748838481257,1.3375,2498.1,2497.9,0.48018]
[1748838481465,0.48611676,2498.3,2497.7,1.3885]
[1748838481769,0.48016,2498.1,2497.8,0.4802]
[1748838482068,0.48018,2498.0,2497.8,0.4802]
[1748838482263,0.48019,2497.9,2497.7,5.74772]
[1748838482766,0.1958,2497.8,2497.7,5.74772]
[1748838488477,0.1958,2497.8,2497.4,0.6837]
[1748838488478,0.8423,2497.8,2497.4,0.6837]
[1748838488771,2.69182,2497.8,2497.5,0.48026]
[1748838488966,2.2116,2497.8,2497.5,0.48026]
[1748838489168,0.48023,2497.7,2497.5,1.80336]
[1748838489569,2.69182,2497.8,2497.6,0.48024]
[1748838489778,2.69181,2497.8,2497.6,0.48024]
[1748838490275,0.8423,2497.8,2497.7,0.48023]
[1748838492278,1.87193662,2497.8,2497.7,0.48023]
[1748838492479,0.8423,2497.8,2497.7,0.48023]
[1748838492779,1.8719491,2497.8,2497.7,0.98023]
[1748838493279,1.8719591,2497.8,2497.7,0.98023]
[1748838493479,0.8423,2497.8,2497.7,0.98023]
[1748838493778,1.87201535,2497.8,2497.7,0.98023]
[1748838494580,0.1958,2497.8,2497.7,0.98023]
[1748838494776,0.1958,2497.8,2497.7,4.85923]
[1748838494981,0.1958,2497.8,2497.7,6.88823]
[1748838502682,0.1958,2497.8,2497.7,6.408]
[1748838502986,0.67601,2497.8,2497.7,4.379]
[1748838503188,0.67601,2497.8,2497.7,0.5]
[1748838503384,1.70603138,2497.8,2497.7,0.5]
[1748838504785,4.91383138,2497.8,2497.7,0.5]
[1748838506589,4.91383195,2497.8,2497.7,0.5]
[1748838507185,5.1211044,2497.8,2497.7,0.5]
[1748838507488,0.48026,2497.6,2497.4,0.48029]
[1748838507789,0.48026,2497.6,2497.3,4.3593]
[1748838507989,1.84787,2497.5,2497.3,4.3593]
[1748838509489,1.3676,2497.5,2497.3,3.879]
[1748838509690,1.84788,2497.5,2497.3,4.3593]
[1748838509887,1.3676,2497.5,2497.4,0.48029]
[1748838510391,1.77164,2497.7,2497.5,0.48026]
[1748838510589,1.03021165,2497.6,2497.5,0.48026]
[1748838511293,0.1958,2497.8,2497.7,0.48023]
[1748838512594,0.1958,2497.8,2497.7,4.35623]
[1748838518998,0.1958,2497.8,2497.7,45.15623]
[1748838520100,0.00599676,2498.3,2498.2,0.48014]
[1748838520295,1.51640205,2498.3,2498.1,4.35615]
[1748838520492,0.48611676,2498.3,2498.1,3.876]
[1748838521899,0.68621676,2498.3,2498.2,0.48014]
[1748838522103,1.71552376,2498.3,2498.2,0.48014]
[1748838522899,1.71552376,2498.3,2498.2,0.98014]
[1748838523094,1.71552376,2498.3,2498.2,0.5]
[1748838523903,1.23540376,2498.3,2498.2,0.98014]
[1748838524499,0.20609676,2498.3,2498.2,0.98014]
[1748838524903,1.71523214,2498.3,2498.2,0.5]
[1748838526403,0.68621676,2498.3,2498.2,0.5]
[1748838526700,1.71503906,2498.3,2498.2,0.5]
[1748838526900,0.20609676,2498.3,2498.2,0.98014]
[1748838528103,0.20609676,2498.3,2498.2,4.18794]
[1748838528801,0.20609676,2498.3,2498.2,0.98014]
[1748838529002,0.20609676,2498.3,2498.2,2.34454]
[1748838537614,0.20609676,2498.3,2498.2,1.84454]
[1748838537809,0.20609676,2498.3,2498.2,2.34454]
[1748838543310,0.20609676,2498.3,2498.2,6.21654]
[1748838543706,3.2078,2498.7,2498.6,0.48006]
[1748838543912,0.6471,2498.8,2498.7,0.48004]
[1748838544114,1.67702413,2498.8,2498.7,0.48004]
[1748838544409,1.67719431,2498.8,2498.7,0.48004]
[1748838544610,0.6471,2498.8,2498.7,1.79834]
[1748838550711,1.12712,2498.8,2498.7,0.48004]
[1748838550913,2.46212,2498.8,2498.7,0.48004]
[1748838551714,2.46212,2498.8,2498.6,3.872]
[1748838552218,1.9821,2498.8,2498.7,0.48004]
[1748838552812,1.9821,2498.8,2498.7,0.98004]
[1748838553219,0.6471,2498.8,2498.7,0.98004]
[1748838561720,1.9256,2498.8,2498.7,0.98004]
[1748838562927,2.40562,2498.8,2498.7,0.98004]
[1748838563133,2.40562,2498.8,2498.7,0.5]
[1748838564220,3.43634217,2498.8,2498.7,0.5]
[1748838567428,3.43688391,2498.8,2498.7,0.5]
[1748838567625,0.48004,2498.7,2498.6,3.871]
[1748838568227,0.48004,2498.7,2498.5,0.00599676]
[1748838568228,0.48006,2498.6,2498.5,0.00599676]
[1748838568429,2.78432693,2498.6,2498.5,0.00599676]
[1748838569619,7.78432693,2498.6,2498.5,0.00599676]
[1748838570024,10.99212693,2498.6,2498.5,0.00599676]
[1748838570634,0.48014,2498.2,2498.1,3.868]
[1748838571020,1.51160693,2498.2,2498.1,3.868]
[1748838571930,2.54180918,2498.2,2498.1,3.868]
[1748838572530,1.51034225,2498.2,2498.1,3.868]
[1748838572922,0.48017,2498.0,2497.9,3.21379676]
[1748838573630,1.15777,2498.0,2497.9,3.21379676]
[1748838576327,1.15777,2498.0,2497.9,4.59899676]
[1748838579633,1.15777,2498.0,2497.9,1.39119676]
[1748838579934,1.15777,2498.0,2497.9,4.59899676]
[1748838580829,1.15777,2498.0,2497.9,3.21379676]
[1748838582735,1.15777,2498.0,2497.9,4.52889676]
[1748838582930,0.6776,2498.0,2497.9,5.00908676]
[1748838583133,0.48017,2498.0,2497.9,4.52889676]
[1748838583628,0.6821,2498.3,2497.9,4.52889676]
[1748838583629,0.48017,2498.1,2497.9,5.00908676]
[1748838583833,0.48017,2498.1,2498.0,1.271]
[1748838589143,0.48017,2498.0,2497.9,0.98618676]
[1748838589341,0.6532,2498.0,2497.9,0.98618676]
[1748838590440,0.6532,2498.0,2497.9,2.34088676]
[1748838591842,1.13337,2498.0,2497.9,2.34088676]
[1748838592045,0.6532,2498.0,2497.9,2.34088676]
[1748838593344,0.6532,2498.0,2497.9,1.86069676]
[1748838593643,0.6532,2498.0,2497.9,2.34088676]
[1748838594544,1.13337,2498.0,2497.9,2.34088676]
[1748838595344,1.13337,2498.0,2497.9,1.86069676]
[1748838595546,1.13337,2498.0,2497.9,2.34088676]
[1748838595746,2.16507566,2498.0,2497.9,2.34088676]
[1748838596848,1.68490566,2498.0,2497.9,2.34088676]
[1748838597047,2.16507566,2498.0,2497.9,0.50599676]
[1748838597546,5.37287566,2498.0,2497.9,0.00599676]
[1748838598540,6.40543644,2498.0,2497.9,0.00599676]
[1748838599843,5.37373078,2498.0,2497.9,0.00599676]
[1748838600142,10.58137714,2498.0,2497.9,0.00599676]
[1748838600444,0.48027,2497.5,2497.4,1.3259]
[1748838600656,4.72063078,2497.5,2497.4,1.3259]
[1748838601348,0.48029,2497.4,2497.3,0.6617]
[1748838601548,1.51262027,2497.4,2497.3,0.6617]
[1748838603249,0.48031,2497.3,2497.2,0.00599676]
[1748838603446,2.50971,2497.3,2497.2,0.00599676]
[1748838604342,2.71744746,2497.3,2497.2,0.00599676]
[1748838604544,2.50971,2497.3,2497.2,0.00599676]
[1748838605250,2.50971,2497.3,2497.2,0.48632676]
[1748838605251,0.6674,2497.3,2497.2,0.48632676]